bitfinex-derivatives/quotes_BTCF0:USTF0_20210708
["timestamp","ask_amount","ask_price","bid_price","bid_amount"]
[1625733636608,0.24057544,32351.0,32349.0,1.04176188]
[1625733636756,1.23792748,32350.0,32349.0,0.94176188]
[1625733637056,1.23792748,32350.0,32349.0,1.04176188]
[1625733637657,1.47945061,32351.0,32349.0,1.04176188]
[1625733637957,0.24057544,32351.0,32349.0,1.04176188]
[1625733638112,1.23916008,32352.0,32349.0,0.460611]
[1625733638409,1.23916008,32352.0,32350.0,0.1]
[1625733638709,1.47973552,32352.0,32351.0,0.94784388]
[1625733638858,0.24057544,32352.0,32351.0,0.94784388]
[1625733639158,0.24057544,32352.0,32351.0,1.04784388]
[1625733640810,1.23672233,32353.0,32351.0,0.566693]
[1625733641262,1.23672233,32353.0,32352.0,0.24057544]
[1625733641565,1.23672233,32353.0,32352.0,0.69469344]
[1625733641712,1.23672233,32353.0,32352.0,0.79469344]
[1625733642388,1.23886174,32354.0,32352.0,0.79469344]
[1625733642841,1.23886174,32354.0,32352.0,0.69469344]
[1625733643214,1.23886174,32354.0,32353.0,0.1]
[1625733643514,1.23886174,32354.0,32353.0,0.565773]
[1625733643666,1.23814375,32355.0,32353.0,0.565773]
[1625733643815,1.47871919,32355.0,32354.0,0.24057544]
[1625733643965,0.24057544,32355.0,32354.0,0.24057544]
[1625733644115,0.24057544,32355.0,32354.0,0.69812244]
[1625733644266,0.24057544,32355.0,32354.0,0.97626244]
[1625733644568,0.24057544,32355.0,32354.0,1.07626244]
[1625733645164,0.24057544,32355.0,32354.0,1.16806244]
[1625733645465,0.24057544,32355.0,32354.0,1.07626244]
[1625733645765,1.23888476,32356.0,32354.0,0.835687]
[1625733646368,1.4794602,32356.0,32355.0,0.24057544]
[1625733646667,1.4794602,32356.0,32355.0,0.80681644]
[1625733648393,1.23888476,32356.0,32355.0,0.566241]
[1625733648844,1.72003564,32356.0,32355.0,0.80681644]
[1625733650649,3.13126522,32356.0,32355.0,0.80681644]
[1625733650801,2.65011434,32356.0,32355.0,0.566241]
[1625733651323,3.13126522,32356.0,32355.0,0.80681644]
[1625733651923,3.13126522,32356.0,32355.0,0.44215093]
[1625733657327,3.13126522,32356.0,32355.0,0.44579682]
[1625733657628,3.13126522,32356.0,32355.0,0.44215093]
[1625733658380,3.13126522,32356.0,32355.0,0.75520673]
[1625733658531,1.72003564,32356.0,32355.0,0.75520673]
[1625733658830,0.48115088,32356.0,32355.0,0.75520673]
[1625733659853,1.01107733,32356.0,32355.0,0.75520673]
[1625733660120,1.01107733,32356.0,32355.0,0.84920673]
[1625733660329,0.65785187,32356.0,32355.0,0.84920673]
[1625733660931,0.53005332,32357.0,32355.0,0.84920673]
[1625733661085,1.2360786,32361.0,32355.0,0.84920673]
[1625733661230,1.22251758,32365.0,32356.0,0.01275452]
[1625733661381,0.17712164,32364.0,32356.0,0.01275452]
[1625733661697,0.17714893,32365.0,32357.0,0.463639]
[1625733661835,0.17714893,32365.0,32364.0,4.6061]
[1625733661982,0.13034893,32365.0,32364.0,4.89814]
[1625733662134,1.41595264,32371.0,32364.0,4.89814]
[1625733662289,1.41595264,32371.0,32364.0,5.36979333]
[1625733662431,1.59307138,32375.0,32364.0,5.36979333]
[1625733662432,1.41572012,32372.0,32364.0,5.36979333]
[1625733662583,1.41572012,32372.0,32365.0,0.01275348]
[1625733663031,1.41572012,32372.0,32366.0,0.464938]
[1625733663332,1.41572012,32372.0,32371.0,0.72172632]
[1625733663483,1.41572012,32372.0,32371.0,0.94040632]
[1625733663636,1.41489949,32373.0,32371.0,0.57957862]
[1625733663782,1.41489949,32373.0,32371.0,1.03574962]
[1625733663932,1.41489949,32373.0,32372.0,0.00364378]
[1625733664236,2.47491169,32373.0,32372.0,0.46833578]
[1625733664683,1.0600122,32373.0,32372.0,0.46833578]
[1625733664909,2.47344272,32373.0,32372.0,0.46833578]
[1625733665209,1.0600122,32373.0,32372.0,0.47744485]
[1625733665733,1.0600122,32373.0,32372.0,0.46833578]
[1625733666795,0.9674122,32373.0,32372.0,0.46833578]
[1625733668212,4.0583,32372.0,32355.0,0.094]
[1625733668512,4.0583,32372.0,32364.0,0.462468]
[1625733668513,5.46877578,32372.0,32364.0,0.462468]
[1625733668814,1.41047578,32372.0,32364.0,0.46611194]
[1625733668962,1.41100547,32373.0,32364.0,0.46611194]
[1625733669112,1.41100547,32373.0,32365.0,0.00364403]
[1625733669412,1.41100547,32373.0,32366.0,0.45968]
[1625733669562,1.41100547,32373.0,32368.0,0.24057544]
[1625733669862,1.41100547,32373.0,32369.0,0.46832701]
[1625733670464,1.41032111,32372.0,32370.0,0.0036441]
[1625733670763,1.41032111,32372.0,32371.0,0.46632]
[1625733671215,1.41032111,32372.0,32371.0,0.469964]
[1625733671531,1.41168178,32373.0,32371.0,0.469964]
[1625733671668,1.41168178,32373.0,32371.0,0.003644]
[1625733671814,1.41158919,32372.0,32371.0,0.457587]
[1625733672115,1.41135901,32373.0,32370.0,0.00364398]
[1625733672269,1.41135901,32373.0,32371.0,0.00364393]
[1625733672425,1.41135901,32373.0,32371.0,0.46992793]
[1625733672718,1.41256067,32372.0,32371.0,0.46992793]
[1625733672868,1.41256067,32372.0,32371.0,0.466284]
[1625733673026,1.41256067,32372.0,32371.0,0.46992796]
[1625733673334,1.41256067,32372.0,32371.0,0.00364396]
[1625733673622,1.41256067,32372.0,32371.0,0.464159]
[1625733673928,1.41256067,32372.0,32371.0,0.00364419]
[1625733674232,1.41256067,32372.0,32371.0,0.454809]
[1625733674671,1.41256067,32372.0,32371.0,0.00364387]
[1625733674820,1.41256067,32372.0,32371.0,0.46369387]
[1625733674973,1.41364315,32373.0,32371.0,0.46369387]
[1625733675421,1.41364315,32373.0,32372.0,0.00364373]
[1625733675721,1.41364315,32373.0,32372.0,0.46604273]
[1625733676771,1.41364315,32373.0,32372.0,0.462399]
[1625733676923,3.00384363,32373.0,32361.0,0.24057544]
[1625733677072,1.41329507,32369.0,32361.0,0.24057544]
[1625733677373,1.41266837,32367.0,32364.0,0.00364439]
[1625733677523,0.72172632,32365.0,32364.0,0.465644]
[1625733677674,0.95389632,32365.0,32364.0,0.465644]
[1625733677823,0.95389632,32365.0,32362.0,0.466175]
[1625733677974,0.95389632,32365.0,32358.0,0.24057544]
[1625733678126,0.08846279,32361.0,32358.0,0.24057544]
[1625733678275,0.08846279,32361.0,32359.0,0.008565]
[1625733678424,0.08846279,32361.0,32360.0,0.1]
[1625733678576,0.95389632,32365.0,32360.0,0.1]
[1625733678724,0.95389632,32365.0,32360.0,0.56674352]
[1625733679027,0.95389632,32365.0,32361.0,0.00364452]
[1625733679474,0.95389632,32365.0,32362.0,0.457438]
[1625733679625,0.24057544,32363.0,32362.0,0.457438]
[1625733680075,0.24057544,32363.0,32362.0,0.00364456]
[1625733680375,0.24057544,32363.0,32362.0,0.46711056]
[1625733680525,0.24057544,32363.0,32362.0,0.463466]
[1625733680825,0.24057544,32363.0,32362.0,0.00364452]
[1625733681125,0.24057544,32363.0,32362.0,0.46027052]
[1625733681425,0.24057544,32363.0,32362.0,0.456626]
[1625733681725,0.24057544,32363.0,32359.0,0.460485]
[1625733681885,0.08892384,32361.0,32359.0,0.552085]
[1625733682027,0.08892384,32361.0,32359.0,0.0916]
[1625733682183,0.32954195,32363.0,32360.0,0.00364432]
[1625733682327,0.32954195,32363.0,32360.0,0.56784132]
[1625733682658,0.24057544,32363.0,32360.0,0.56784132]
[1625733682777,0.24057544,32363.0,32361.0,0.00364402]
[1625733683083,0.24057544,32363.0,32362.0,0.566462]
[1625733683379,0.32970631,32363.0,32362.0,0.566462]
[1625733683535,0.32970631,32363.0,32362.0,0.57010614]
[1625733683828,0.24057544,32363.0,32362.0,0.57010614]
[1625733684355,0.32966704,32363.0,32362.0,0.57010614]
[1625733684802,0.24057544,32363.0,32362.0,0.57010614]
[1625733688408,0.24057544,32363.0,32362.0,0.47010614]
[1625733689156,0.24057544,32363.0,32362.0,0.57010614]
[1625733690548,0.24057544,32363.0,32362.0,0.89555614]
[1625733690853,1.26004653,32368.0,32362.0,0.98895614]
[1625733691134,1.62000841,32373.0,32362.0,2.25455148]
[1625733691135,1.17005163,32373.0,32362.0,2.25455148]
[1625733691262,1.17005163,32373.0,32363.0,0.00364284]
[1625733691413,1.44397133,32376.0,32363.0,0.00364284]
[1625733691562,1.44397133,32376.0,32372.0,0.1]
[1625733691713,0.9569,32383.0,32373.0,0.33177544]
[1625733691714,0.24057544,32374.0,32373.0,0.33177544]
[1625733691863,0.24057544,32374.0,32373.0,0.79659244]
[1625733692013,0.24057544,32374.0,32373.0,0.80023515]
[1625733692314,0.24057544,32374.0,32373.0,0.90023515]
[1625733693030,0.24057544,32374.0,32373.0,0.56845971]
[1625733693163,1.68286685,32374.0,32373.0,0.564817]
[1625733693297,1.68286685,32374.0,32373.0,0.464817]
[1625733693441,1.68286685,32374.0,32373.0,0.46846004]
[1625733693594,1.68286685,32374.0,32371.0,0.463868]
[1625733693778,0.48115088,32372.0,32371.0,0.463868]
[1625733694041,2.64341463,32372.0,32371.0,0.463868]
[1625733694192,2.64341463,32372.0,32371.0,0.46751141]
[1625733694643,4.26464308,32372.0,32371.0,0.46751141]
[1625733694795,4.26464308,32372.0,32363.0,0.24057544]
[1625733694943,4.26464308,32372.0,32371.0,0.00364357]
[1625733695094,2.64341463,32372.0,32371.0,0.00364357]
[1625733695243,2.64341463,32372.0,32364.0,0.00364369]
[1625733695544,0.48115088,32372.0,32371.0,0.00364369]
[1625733695694,0.48115088,32372.0,32365.0,0.00364369]
[1625733695850,0.96101094,32366.0,32365.0,0.00364369]
[1625733695994,1.30407094,32366.0,32364.0,0.46601269]
[1625733696295,0.58363544,32366.0,32365.0,0.10364372]
[1625733696596,1.30412949,32366.0,32365.0,0.56584272]
[1625733697123,2.38405885,32366.0,32365.0,0.56584272]
[1625733698709,2.38405885,32366.0,32365.0,0.46584272]
[1625733698850,3.82391775,32366.0,32365.0,0.46584272]
[1625733699304,3.82391775,32366.0,32365.0,0.56584272]
[1625733704036,2.38405885,32366.0,32365.0,0.56584272]
[1625733704337,3.82649398,32366.0,32365.0,0.56584272]
[1625733704487,2.38405885,32366.0,32365.0,0.56584272]
[1625733708845,2.38405885,32366.0,32365.0,0.562199]
[1625733708995,2.04099885,32366.0,32365.0,0.562199]
[1625733709143,2.04099885,32366.0,32365.0,0.56584259]
[1625733710576,1.3205048,32366.0,32365.0,0.56584259]
[1625733710725,2.04121363,32366.0,32365.0,0.56584259]
[1625733710874,2.00971363,32366.0,32365.0,0.56584259]
[1625733711025,2.00971363,32366.0,32365.0,5.05504259]
[1625733712002,0.20907544,32366.0,32365.0,5.05504259]
[1625733712826,1.68462405,32368.0,32366.0,0.092]
[1625733712981,0.6740128,32368.0,32366.0,0.092]
[1625733713130,1.50514856,32372.0,32367.0,0.466278]
[1625733713428,0.24057544,32372.0,32367.0,0.46992074]
[1625733713578,0.24057544,32372.0,32368.0,1.45334194]
[1625733713878,0.24057544,32372.0,32371.0,0.48115088]
[1625733714028,0.24057544,32372.0,32371.0,0.80859088]
[1625733714178,0.24057544,32372.0,32371.0,0.81223343]
[1625733714328,0.24057544,32372.0,32371.0,0.91477043]
[1625733715154,0.22757544,32372.0,32371.0,0.91477043]
[1625733715832,0.22757544,32372.0,32371.0,0.67893043]
[1625733716132,1.49236515,32372.0,32371.0,0.67893043]
[1625733716582,2.93709731,32372.0,32371.0,0.67893043]
[1625733717705,2.93709731,32372.0,32371.0,0.93369043]
[1625733717854,1.49236515,32372.0,32371.0,0.93369043]
[1625733718681,2.94165917,32372.0,32371.0,0.93369043]
[1625733719356,2.71408373,32372.0,32371.0,0.93369043]
[1625733719506,1.26938812,32374.0,32371.0,0.93369043]
[1625733719657,1.51045754,32375.0,32371.0,0.93369043]
[1625733719957,1.27012656,32377.0,32373.0,0.24057544]
[1625733720109,0.98932656,32377.0,32373.0,0.24057544]
[1625733720257,1.13707745,32380.0,32373.0,0.24057544]
[1625733720407,0.24057544,32382.0,32376.0,0.1]
[1625733720710,0.24057544,32382.0,32381.0,4.08164153]
[1625733720711,0.23657544,32382.0,32381.0,4.08164153]
[1625733720859,0.23657544,32382.0,32381.0,4.33475153]
[1625733721007,0.23657544,32382.0,32381.0,4.8011509]
[1625733721158,0.18277544,32382.0,32381.0,4.9011509]
[1625733721311,1.45037095,32384.0,32381.0,4.9011509]
[1625733721609,1.45037095,32384.0,32382.0,0.00364129]
[1625733721761,1.45032662,32385.0,32382.0,0.00364129]
[1625733721909,1.45032662,32385.0,32384.0,0.72172632]
[1625733722059,1.45032662,32385.0,32384.0,0.82172632]
[1625733722360,1.45032662,32385.0,32384.0,1.28809369]
[1625733722660,0.54394898,32385.0,32384.0,1.28809369]
[1625733722809,1.99416161,32385.0,32384.0,1.28809369]
[1625733723409,3.62572716,32385.0,32384.0,1.28809369]
[1625733724011,3.8663026,32385.0,32384.0,1.04751825]
[1625733724161,3.8663026,32385.0,32384.0,0.56636737]
[1625733724311,3.8663026,32385.0,32384.0,0.46636737]
[1625733724462,3.8663026,32385.0,32374.0,0.29757544]
[1625733724611,5.1867726,32385.0,32374.0,0.24057544]
[1625733724768,3.37132736,32385.0,32384.0,0.465137]
[1625733724910,3.37132736,32385.0,32375.0,0.46317232]
[1625733725060,3.37132736,32385.0,32374.0,0.24057544]
[1625733725061,6.99128072,32385.0,32384.0,0.00364234]
[1625733725211,6.99128072,32385.0,32374.0,0.24057544]
[1625733725363,4.7704,32383.0,32374.0,0.24057544]
[1625733725511,1.99246659,32375.0,32374.0,0.24057544]
[1625733725662,2.33037659,32375.0,32374.0,0.24057544]
[1625733725961,2.81152747,32375.0,32374.0,0.70761528]
[1625733726111,4.43946154,32375.0,32374.0,0.70761528]
[1625733726261,4.43946154,32375.0,32374.0,0.46703984]
[1625733726487,4.43946154,32375.0,32374.0,0.00364284]
[1625733726639,4.43946154,32375.0,32368.0,0.24057544]
[1625733726791,1.98865898,32369.0,32360.0,1.44965411]
[1625733727087,4.41595537,32361.0,32354.0,1.63099219]
[1625733727237,4.65040537,32361.0,32354.0,1.63099219]
[1625733727387,4.65040537,32361.0,32339.0,0.9263]
[1625733727388,0.54172651,32360.0,32352.0,1.63105829]
[1625733727536,0.54172651,32360.0,32358.0,0.460883]
[1625733727686,0.54164709,32359.0,32353.0,0.0127527]
[1625733727988,0.48115088,32354.0,32353.0,0.25332814]
[1625733728139,0.81271088,32354.0,32353.0,0.25332814]
[1625733728368,0.81271088,32354.0,32353.0,0.71784314]
[1625733728523,0.81271088,32354.0,32353.0,0.72695497]
[1625733728665,0.81271088,32354.0,32353.0,2.45789498]
[1625733728815,0.48115088,32354.0,32353.0,7.01829498]
[1625733729267,0.54261337,32364.0,32353.0,7.01829498]
[1625733729418,0.54261337,32364.0,32354.0,0.10311029]
[1625733729567,0.54311093,32367.0,32360.0,1.63068067]
[1625733729715,0.54311093,32367.0,32360.0,1.92414067]
[1625733729866,0.54312931,32368.0,32361.0,0.005144]
[1625733730015,0.54312931,32368.0,32367.0,0.48115088]
[1625733730168,0.54312931,32368.0,32367.0,0.74213088]
[1625733730467,0.54312931,32368.0,32367.0,1.21193661]
[1625733730617,0.54333647,32369.0,32367.0,1.22104276]
[1625733730768,1.87022274,32377.0,32367.0,1.22104276]
[1625733730769,0.54363845,32372.0,32367.0,1.32104276]
[1625733730918,0.54363845,32372.0,32368.0,0.01274798]
[1625733731216,0.54363845,32372.0,32368.0,0.00364228]
[1625733731366,0.54363845,32372.0,32369.0,0.457737]
[1625733731517,0.24057544,32377.0,32371.0,0.1]
[1625733731816,0.24057544,32377.0,32370.0,0.00364232]
[1625733731817,0.54364929,32372.0,32370.0,0.00364232]
[1625733731967,0.54364929,32372.0,32371.0,4.3575]
[1625733732116,0.54364929,32372.0,32371.0,4.83865088]
[1625733732270,0.54355308,32373.0,32371.0,4.94229293]
[1625733732417,0.54355308,32373.0,32371.0,5.40178093]
[1625733732567,0.54339805,32375.0,32372.0,0.00364185]
[1625733732867,0.54339805,32375.0,32373.0,0.462674]
[1625733733018,0.54338464,32376.0,32374.0,0.1]
[1625733733168,0.78395093,32377.0,32374.0,0.38018]
[1625733733318,0.78395093,32377.0,32375.0,0.46789277]
[1625733733618,0.78395093,32377.0,32376.0,0.00364177]
[1625733733769,0.78395093,32377.0,32376.0,0.10364177]
[1625733733918,0.78395093,32377.0,32376.0,0.56159077]
[1625733734069,0.78395093,32377.0,32376.0,1.04274165]
[1625733739701,0.24057544,32377.0,32376.0,1.04274165]
[1625733739851,0.78362626,32377.0,32376.0,1.04274165]
[1625733740302,0.78362626,32377.0,32376.0,0.94274165]
[1625733740603,2.0507126,32377.0,32371.0,4.83865088]
[1625733740753,0.24057544,32377.0,32376.0,0.1]
[1625733741054,3.67833572,32377.0,32371.0,4.83865088]
[1625733741205,1.0,32376.0,32371.0,4.83865088]
[1625733741428,0.54302225,32372.0,32371.0,4.83865088]
[1625733741727,0.54302225,32372.0,32371.0,5.39763788]
[1625733741878,0.54302225,32372.0,32371.0,5.4012804]
[1625733742029,0.78359769,32372.0,32371.0,5.4012804]
[1625733743079,1.87012053,32372.0,32371.0,5.4012804]
[1625733744356,1.87012053,32372.0,32371.0,5.39763788]
[1625733744580,1.87012053,32372.0,32371.0,5.40128052]
[1625733746535,1.32709828,32372.0,32371.0,5.40128052]
[1625733746686,1.87067042,32372.0,32371.0,5.40128052]
[1625733747512,1.87067042,32372.0,32371.0,5.49278052]
[1625733747664,0.78414758,32372.0,32371.0,5.49278052]
[1625733747967,0.24057544,32372.0,32371.0,5.49278052]
[1625733749239,0.23167544,32372.0,32371.0,5.49278052]
[1625733749538,0.23167544,32372.0,32371.0,5.50188607]
[1625733754117,0.54360341,32374.0,32371.0,5.50188607]
[1625733754568,0.54360341,32374.0,32372.0,0.01274785]
[1625733754716,0.54359427,32375.0,32372.0,0.01274785]
[1625733754867,0.54359427,32375.0,32373.0,0.46498]
[1625733755016,0.54359497,32374.0,32373.0,0.46498]
[1625733755166,0.54359298,32375.0,32373.0,0.46498]
[1625733755315,0.54359298,32375.0,32373.0,0.46862222]
[1625733755619,0.54359298,32375.0,32374.0,0.10364216]
[1625733755766,1.32755512,32377.0,32374.0,0.10364216]
[1625733755916,1.32755512,32377.0,32374.0,0.56842316]
[1625733756065,1.32755512,32377.0,32374.0,0.66032316]
[1625733756216,1.32755512,32377.0,32376.0,0.24057544]
[1625733756366,1.87112625,32377.0,32376.0,0.24057544]
[1625733756516,1.87112625,32377.0,32376.0,0.70321944]
[1625733756665,1.87112625,32377.0,32376.0,0.80686154]
[1625733757269,0.32007113,32377.0,32376.0,0.81596633]
[1625733757498,1.44917983,32381.0,32376.0,0.81596633]
[1625733757499,0.54349043,32381.0,32376.0,2.25536145]
[1625733757794,0.0917,32383.0,32378.0,1.43897883]
[1625733757943,1.08677842,32384.0,32380.0,1.25911811]
[1625733758092,0.88727842,32384.0,32380.0,1.56789811]
[1625733758244,1.08685849,32385.0,32383.0,0.48115088]
[1625733758543,0.24057544,32386.0,32384.0,0.0036413]
[1625733758694,0.24057544,32386.0,32384.0,0.4656613]
[1625733758995,0.24057544,32386.0,32385.0,0.1]
[1625733759295,0.24057544,32386.0,32385.0,0.57680858]
[1625733759820,0.24057544,32386.0,32385.0,0.66990858]
[1625733759971,0.18487544,32386.0,32385.0,1.9272497]
[1625733760270,0.18487544,32386.0,32385.0,1.8341497]
[1625733760422,0.18487544,32386.0,32385.0,0.57680858]
[1625733760576,0.17697544,32386.0,32385.0,0.57680858]
[1625733761097,0.17697544,32386.0,32385.0,0.5677053]
[1625733762862,0.17697544,32386.0,32385.0,0.6607053]
[1625733762974,0.17697544,32386.0,32385.0,0.5677053]
[1625733764476,0.17697544,32386.0,32385.0,0.6597053]
[1625733765241,0.17697544,32386.0,32385.0,0.5677053]
[1625733766662,0.47392544,32386.0,32385.0,0.5677053]
[1625733768383,0.17697544,32386.0,32385.0,0.6592053]
[1625733769584,0.17697544,32386.0,32385.0,0.9128553]
[1625733770186,0.17697544,32386.0,32385.0,0.8213553]
[1625733770652,0.17697544,32386.0,32385.0,0.5677053]
[1625733774162,0.51100544,32386.0,32385.0,0.5677053]
[1625733775365,1.23443128,32386.0,32385.0,0.5677053]
[1625733775742,1.23443128,32386.0,32385.0,0.4677053]
[1625733777628,1.23443128,32386.0,32385.0,0.5677053]
[1625733778217,1.23443128,32386.0,32385.0,0.4677053]
[1625733779571,2.50050413,32386.0,32385.0,0.4677053]
[1625733780092,1.23443128,32386.0,32385.0,0.4677053]
[1625733783025,2.50043724,32386.0,32385.0,0.4677053]
[1625733784166,2.50043724,32386.0,32385.0,0.0036413]
[1625733784311,3.50043724,32386.0,32385.0,0.0036413]
[1625733784449,3.50043724,32386.0,32378.0,0.01274505]
[1625733784750,1.51100544,32386.0,32385.0,0.00364144]
[1625733784902,0.51100544,32386.0,32385.0,0.00364144]
[1625733785051,4.44741966,32386.0,32379.0,0.01274546]
[1625733785202,0.7235458,32380.0,32376.0,0.48115088]
[1625733785499,4.0418,32377.0,32376.0,0.48115088]
[1625733785651,4.31283,32377.0,32376.0,0.48115088]
[1625733785803,4.31283,32377.0,32376.0,0.0127463]
[1625733785952,4.31283,32377.0,32376.0,0.4783153]
[1625733786400,4.79398088,32377.0,32376.0,0.4783153]
[1625733786699,5.15598172,32377.0,32376.0,0.4783153]
[1625733787243,6.15598172,32377.0,32376.0,0.4783153]
[1625733787526,4.79398088,32377.0,32376.0,0.5783153]
[1625733787827,5.15601619,32377.0,32376.0,0.5783153]
[1625733787977,5.15601619,32377.0,32376.0,0.4783153]
[1625733788431,5.51849819,32377.0,32376.0,0.4783153]
[1625733789329,6.6052886,32377.0,32376.0,0.4783153]
[1625733789931,6.6052886,32377.0,32376.0,0.0127463]
[1625733790081,8.1052886,32377.0,32376.0,0.0127463]
[1625733790231,9.37323694,32377.0,32376.0,0.0127463]
[1625733790383,9.37323694,32377.0,32366.0,0.01274749]
[1625733790532,0.72172632,32367.0,32366.0,0.01274749]
[1625733790682,0.72172632,32367.0,32365.0,0.24057544]
[1625733790683,1.00764632,32367.0,32365.0,0.24057544]
[1625733790986,1.00764632,32367.0,32366.0,0.47549843]
[1625733791732,1.00764632,32367.0,32366.0,0.57549843]
[1625733792634,1.00764632,32367.0,32366.0,0.11274843]
[1625733792786,1.00764632,32367.0,32366.0,0.01274843]
[1625733793085,1.00764632,32367.0,32366.0,0.11274843]
[1625733796315,0.72172632,32367.0,32366.0,0.11274843]
[1625733797069,0.48115088,32367.0,32366.0,0.39636843]
[1625733797366,0.48115088,32367.0,32366.0,0.85956643]
[1625733798119,0.48115088,32367.0,32366.0,0.868674]
[1625733798490,0.24057544,32367.0,32366.0,0.868674]
[1625733798793,0.24057544,32367.0,32366.0,0.85956643]
[1625733798942,0.24057544,32367.0,32366.0,0.57594643]
[1625733800667,0.24057544,32367.0,32366.0,0.56684041]
[1625733801192,0.24057544,32367.0,32366.0,0.57594694]
[1625733801792,0.24057544,32367.0,32366.0,0.56684041]
[1625733802091,0.24057544,32367.0,32366.0,0.57594678]
[1625733804419,0.24057544,32367.0,32366.0,0.58505449]
[1625733805471,0.24057544,32367.0,32366.0,0.57594678]
[1625733805621,0.24057544,32367.0,32366.0,0.57230437]
[1625733805921,0.24057544,32367.0,32366.0,0.57594646]
[1625733810201,0.24057544,32367.0,32366.0,0.5941562]
[1625733810352,0.36243053,32372.0,32366.0,0.60326361]
[1625733810502,0.36239417,32374.0,32366.0,0.60326361]
[1625733810651,0.24057544,32375.0,32371.0,0.24057544]
[1625733810801,0.24057544,32375.0,32371.0,0.57398544]
[1625733811103,0.24057544,32375.0,32372.0,0.46929762]
[1625733811402,0.96509063,32379.0,32374.0,0.1]
[1625733811403,0.24057544,32379.0,32374.0,0.1]
[1625733811705,0.24057544,32379.0,32373.0,0.0091057]
[1625733811706,0.24057544,32379.0,32375.0,0.464314]
[1625733811854,0.24057544,32379.0,32375.0,0.47705753]
[1625733812004,0.24057544,32379.0,32378.0,0.1]
[1625733812154,0.24057544,32379.0,32378.0,0.39064]
[1625733812302,0.24057544,32379.0,32378.0,0.853266]
[1625733812453,0.24057544,32379.0,32378.0,0.86600877]
[1625733812605,0.24057544,32379.0,32378.0,1.34715965]
[1625733815157,0.4218463,32379.0,32378.0,1.34715965]
[1625733815453,0.24057544,32379.0,32378.0,1.34715965]
[1625733815604,0.42186327,32379.0,32378.0,1.34715965]
[1625733815906,0.96520818,32379.0,32378.0,1.24715965]
[1625733816055,2.05213027,32379.0,32378.0,1.24715965]
[1625733816204,2.05213027,32379.0,32378.0,0.94741767]
[1625733817482,2.05213027,32379.0,32378.0,0.95652091]
[1625733817632,0.96520818,32379.0,32378.0,1.05652091]
[1625733818908,0.24057544,32379.0,32378.0,1.05652091]
[1625733819208,0.60297238,32379.0,32378.0,1.05652091]
[1625733819512,0.24057544,32379.0,32378.0,1.05652091]
[1625733819659,0.96528094,32379.0,32378.0,1.05652091]
[1625733819961,0.24057544,32379.0,32378.0,1.05652091]
[1625733820337,0.9653172,32379.0,32378.0,1.05652091]
[1625733820713,0.9653172,32379.0,32378.0,1.04741767]
[1625733821616,0.9653172,32379.0,32378.0,1.0565209]
[1625733821915,2.05247979,32379.0,32378.0,0.94741767]
[1625733823640,3.32099152,32379.0,32378.0,0.94741767]
[1625733823865,2.05247979,32379.0,32378.0,0.94741767]
[1625733824165,2.55247979,32379.0,32378.0,0.00364079]
[1625733824315,3.64507979,32379.0,32378.0,0.00364079]
[1625733824466,6.36341459,32379.0,32378.0,0.00364079]
[1625733824621,8.47577913,32379.0,32372.0,0.01274617]
[1625733824916,2.31432632,32379.0,32378.0,0.00364226]
[1625733825067,8.47769052,32379.0,32378.0,0.00364226]
[1625733825217,8.47769052,32379.0,32373.0,0.0036424]
[1625733825366,8.47769052,32379.0,32378.0,0.00364247]
[1625733825517,13.68439052,32379.0,32378.0,0.00364247]
[1625733825669,13.68439052,32379.0,32364.0,0.01274865]
[1625733825818,0.54399058,32366.0,32364.0,0.01274865]
[1625733825968,1.48584058,32366.0,32364.0,0.01274865]
[1625733826121,1.66693128,32366.0,32364.0,0.01274865]
[1625733826272,1.66693128,32366.0,32360.0,0.01274989]
[1625733826273,2.81267141,32365.0,32360.0,0.01274989]
[1625733826420,0.5,32364.0,32360.0,0.01274989]
[1625733826570,0.36266182,32361.0,32356.0,0.24057544]
[1625733826721,1.08438814,32361.0,32356.0,0.24057544]
[1625733826872,0.54410428,32360.0,32356.0,0.24057544]
[1625733827020,0.54410428,32360.0,32357.0,0.01275074]
[1625733827173,0.54410428,32360.0,32357.0,0.47502374]
[1625733827622,4.3733,32358.0,32357.0,0.462273]
[1625733827775,4.71461,32358.0,32357.0,0.462273]
[1625733828075,4.71461,32358.0,32357.0,0.47502395]
[1625733829424,4.71461,32358.0,32357.0,0.46591613]
[1625733829727,4.71461,32358.0,32357.0,0.00364313]
[1625733829875,5.21461,32358.0,32357.0,0.00364313]
[1625733830026,6.93916238,32358.0,32357.0,0.00364313]
[1625733830175,8.02591363,32358.0,32357.0,0.00364313]
[1625733830325,8.02591363,32358.0,32354.0,0.00364361]
[1625733830475,8.02591363,32358.0,32357.0,0.00364364]
[1625733830626,8.26648907,32358.0,32357.0,0.00364364]
[1625733830776,9.53465695,32358.0,32349.0,0.01275331]
[1625733830925,0.54380546,32354.0,32349.0,0.01275331]
[1625733831075,0.5,32353.0,32349.0,0.0036438]
[1625733831225,0.1813319,32352.0,32349.0,0.0036438]
[1625733831379,1.04383885,32351.0,32350.0,0.00364394]
[1625733831528,1.32999885,32351.0,32350.0,0.00364394]
[1625733831676,0.78616,32351.0,32350.0,0.00364394]
[1625733831824,0.78616,32351.0,32349.0,0.00364421]
[1625733832425,0.78616,32351.0,32345.0,0.00364427]
[1625733832575,1.0,32350.0,32345.0,0.00364427]
[1625733832725,0.72172632,32346.0,32344.0,0.24057544]
[1625733832876,1.72172632,32346.0,32344.0,0.24057544]
[1625733833176,0.72172632,32346.0,32345.0,0.4702432]
[1625733833478,1.72172632,32346.0,32345.0,0.4702432]
[1625733833628,0.72172632,32346.0,32345.0,0.4702432]
[1625733833929,0.72172632,32346.0,32345.0,0.5702432]
[1625733834832,0.72172632,32346.0,32345.0,0.87193556]
[1625733834979,0.48115088,32346.0,32345.0,0.87193556]
[1625733836778,0.24057544,32346.0,32345.0,1.112511]
[1625733841586,0.24057544,32346.0,32345.0,1.11251015]
[1625733845650,4.7266,32349.0,32345.0,1.12161902]
[1625733845950,4.7266,32349.0,32346.0,0.00911125]
[1625733846251,4.7266,32349.0,32346.0,0.0218637]
[1625733846400,4.7266,32349.0,32347.0,0.46967265]
[1625733846705,4.7266,32349.0,32348.0,0.35333047]
[1625733847069,4.7266,32349.0,32348.0,0.81505847]
[1625733848195,4.7266,32349.0,32348.0,0.82416713]
[1625733848945,4.7266,32349.0,32348.0,0.8150556]
[1625733849846,0.24057544,32350.0,32348.0,0.82416711]
[1625733849995,0.24057544,32350.0,32348.0,1.1365856]
[1625733850295,0.24057544,32350.0,32349.0,0.01275204]
[1625733850595,0.24057544,32350.0,32349.0,0.47440604]
[1625733850747,0.24057544,32350.0,32349.0,0.57440604]
[1625733851347,0.24057544,32350.0,32349.0,0.58351726]
[1625733853827,0.24057544,32350.0,32349.0,0.57440604]
[1625733854129,0.24057544,32350.0,32349.0,0.47440604]
[1625733854282,1.24057544,32350.0,32349.0,0.47440604]
[1625733854594,1.74057544,32350.0,32349.0,0.01275204]
[1625733854738,1.74057544,32350.0,32348.0,0.24057544]